Cogmind - Beta 9.4 @@@ ROGUE MODE // 2020.03.04 @ 20:11:47 Player: David Result: Destroyed by Y-64 Sentinel with KE Penetrator Performance ------------- Evolutions (5) 2500 Regions Visited (11) 2200 Robots Destroyed (77) 385 Value Destroyed (2579) 2579 Prototype IDs (6) 120 Alien Tech Used (0) 0 Bonus (715) 715 TOTAL SCORE: 8499 Bonus ------- High Alert Combat Kills 240 Follower Combat Kills 515 Entered Garrisons 200 Aligned with FarCom 300 Friendly Fire -540 Cogmind --------- Core Integrity 0/1000 Matter 300/300 Energy 99/100 System Corruption 12% Temperature Cool (9) Movement Core (50) Location -5/Garrison Parts ------- > --- POWER (2) -------- (None) > --- PROPULSION (4) --- (None) > --- UTILITY (8) ------ Enhanced Optical Array > --- WEAPON (3) ------- (None) > --- INVENTORY (4) ---- Cold Fusion Reactor Peak State ------------ > --- POWER ------------ Light Deuterium Engine Micro Nuclear Core > --- PROPULSION ------- Cooled Airjet Cooled Airjet Cooled Airjet Cooled Airjet > --- UTILITY ---------- Improved Cooling System Small Storage Unit Superbattery Advanced Targeting Computer Improved Weapon Shielding > --- WEAPON ----------- Firepult > --- INVENTORY -------- Enhanced Optical Array Improved Shield Generator Hacking Suite Proton Missile Launcher Remote Datajack Mining Laser [Rating: 70] Favorites ----------- Power Micro Nuclear Core Engine Light Deuterium Engine Power Core Micro Nuclear Core Reactor Cold Fusion Reactor Propulsion Cooled Airjet Wheel Armored Wheel Hover Unit Cooled Airjet Flight Unit Biomechanical Wings Utility Small Storage Unit Device Improved Shield Generator Storage Small Storage Unit Processor Improved Targeting Computer Hackware Hacking Suite Protection Improved Weapon Shielding Weapon Firepult Energy Gun Plasma Rifle Energy Cannon Firepult Ballistic Gun Heavy Machine Gun Launcher Proton Missile Launcher Special Weapon Remote Datajack Slashing Weapon Master Tearclaws Build | -11 -10 -10 -10 -9 -8 -7 -7 -7 -6 -5 -5 ------- Run | Scr Mat Min Exi Min Mat Fac Low Low Fac Fac Gar Slots Evolved 10 | . . . . . 4 2 . . 2 2 . Power 1 | . . . . . 1 . . . . . . Propulsion 2 | . . . . . 1 1 . . . . . Utility 6 | . . . . . 2 1 . . 1 2 . Weapon 1 | . . . . . . . . . 1 . . Parts Attached 72 | 6 8 . 3 . 10 14 3 . 22 3 3 Power 11 | 1 1 . . . 2 3 . . 3 . 1 Engine 8 | 1 1 . . . 2 2 . . 1 . 1 Core 2 | . . . . . . 1 . . 1 . . Reactor 1 | . . . . . . . . . 1 . . Propulsion 21 | 2 3 . . . 3 6 . . 6 1 . Treads . | . . . . . . . . . . . . Leg . | . . . . . . . . . . . . Wheel 9 | 2 3 . . . 3 1 . . . . . Hover 11 | . . . . . . 5 . . 5 1 . Flight 1 | . . . . . . . . . 1 . . Utility 18 | 1 1 . 2 . 2 5 1 . 4 1 1 Device 7 | . . . . . . 4 . . 3 . . Storage 4 | 1 . . 2 . . . . . . 1 . Processor 4 | . . . . . 1 1 . . 1 . 1 Hackware 1 | . . . . . . . 1 . . . . Protection 2 | . 1 . . . 1 . . . . . . Artifact . | . . . . . . . . . . . . Weapon 22 | 2 3 . 1 . 3 . 2 . 9 1 1 Energy Gun 7 | 1 1 . . . 1 . . . 4 . . Energy Cannon 3 | . . . 1 . 2 . . . . . . Ballistic Gun 3 | 1 . . . . . . . . 2 . . Ballistic Cannon . | . . . . . . . . . . . . Launcher 6 | . 1 . . . . . 1 . 3 1 . Special Weapon 2 | . 1 . . . . . . . . . 1 Impact Weapon . | . . . . . . . . . . . . Slashing Weapon 1 | . . . . . . . 1 . . . . Piercing Weapon . | . . . . . . . . . . . . Special Melee Weapon . | . . . . . . . . . . . . Unidentified Prototypes 6 | . . . 2 . . 1 . . 3 . . Parts Lost 21 | . 2 . . . . . . . 3 9 7 Power 3 | . 1 . . . . . . . 1 . 1 Propulsion 5 | . . . . . . . . . 1 3 1 Utility 7 | . . . . . . . . . . 3 4 Weapon 6 | . 1 . . . . . . . 1 3 1 Highest Loss Streak 9 | . 2 . . . . . . . 2 9 7 Average Slot Usage (%) 86 | . 97 100 88 85 72 85 89 92 94 83 27 Engine 7 | . 12 14 14 14 9 7 7 7 3 5 2 Core 2 | . . . . . . 1 7 7 6 . . Wheel 13 | . 28 28 28 28 26 17 . . . . . Hover 12 | . . . . . . 12 30 30 24 20 2 Device 7 | . . . . . . 6 7 7 17 15 . Storage 12 | . 14 14 19 28 18 15 11 7 4 5 3 Processor 6 | . . . . . 2 7 7 7 10 11 11 Hackware 2 | . . . . . . . . 7 6 5 3 Protection 4 | . 13 14 5 . 7 7 7 7 . . . Energy Gun 1 | . 10 . . . . . . . 4 . . Energy Cannon 4 | . . . 8 14 8 7 5 . . . . Ballistic Gun 3 | . 14 14 6 . . . . . 4 5 . Launcher 2 | . 2 14 6 . . . . . 5 4 . Naked Turns . | . . . . . . . . . . . . Heaviest Build 45 | 11 15 15 35 35 41 45 45 31 44 45 18 Greatest Support 57 | 32 32 24 24 24 36 52 52 52 57 56 14 Greatest Overweight (x) 2 | 1 . . 1 1 1 2 1 . 2 2 2 Average Overweight (x) . | . . . . 1 . . . . . . . Largest Inventory Capacity 6 | 6 6 6 6 6 6 6 6 6 6 4 4 Average Capacity 5 | 5 6 6 6 6 6 6 6 6 5 4 4 Most Carried 6 | 4 4 3 5 4 6 6 6 5 6 3 1 Average Carried 4 | . 2 3 3 3 5 4 5 5 4 2 . Final Capacity 6 | 6 6 6 6 6 6 6 6 6 4 4 4 Final Carried 5 | . 3 3 3 4 5 5 5 5 4 2 1 Class Distribution -------------------- 76% | Mutant 7% | Commander-Mutant 6% | Gunner 6% | Infiltrator-Gunner 3% | Infiltrator-Mutant Dominant Class ---------------- Mutant | -10/Materials Mutant | -10/Mines Mutant | -10/Exiles Mutant | -9/Mines Mutant | -8/Materials Mutant | -7/Factory Mutant | -7/Lower Caves Mutant | -7/Lower Caves Mutant | -6/Factory Infiltrator-Mutant | -5/Factory Mutant | -5/Garrison Resources | -11 -10 -10 -10 -9 -8 -7 -7 -7 -6 -5 -5 ----------- Run | Scr Mat Min Exi Min Mat Fac Low Low Fac Fac Gar Matter Collected 1246 | 212 162 21 . 97 100 140 20 . 474 20 . Remotely . | . . . . . . . . . . . . Salvage Created 3453 | . 230 . . 47 340 1411 339 . 936 60 90 Parts 115 | . 18 . . 4 10 31 7 . 40 5 . Haulers Intercepted 4 | . 1 . . . 1 1 . . 1 . . Recyclers Shooed 5 | . 3 . . . . 1 . . 1 . . Parts Field Recycled . | . . . . . . . . . . . . Retrieved Matter . | . . . . . . . . . . . . Parts Self-Destructed 3 | . . . . . . . 3 . . . . Prevented . | . . . . . . . . . . . . Kills | -11 -10 -10 -10 -9 -8 -7 -7 -7 -6 -5 -5 ------- Run | Scr Mat Min Exi Min Mat Fac Low Low Fac Fac Gar Combat Hostiles Destroyed 54 | . 6 . . 3 5 15 8 . 12 2 3 Melee 3 | . . . . . . . . . . . 3 Guns 13 | . 5 . . . . . . . 8 . . Cannons 3 | . . . . . 1 1 1 . . . . AOE 25 | . 1 . . 3 4 6 5 . 4 2 . Classes Destroyed 13 | . 4 . . . 3 5 1 . . . . Worker 3 | . 1 . . . . 1 . . 1 . . Builder 3 | . . . . . . 3 . . . . . Tunneler 1 | . . . . . . 1 . . . . . Hauler 4 | . 1 . . . 1 1 . . 1 . . Recycler 3 | . . . . . . 2 . . 1 . . Operator 1 | . . . . . 1 . . . . . . Watcher 4 | . . . . . 1 2 . . 1 . . Swarmer 21 | . 3 . . 3 1 3 3 . 3 2 3 Grunt 24 | . 3 . . . 4 9 4 . 4 . . Sentry 6 | . . . . . 1 2 . . 3 . . Hunter 2 | . . . . . . 2 . . . . . Programmer 4 | . . . . . . 2 . . 2 . . Master Thief 1 | . . . . . . . 1 . . . . Best Kill Streak 8 | . 6 . . 3 4 5 8 . 4 2 3 Combat Bots Only 8 | . 5 . . 3 2 4 8 . 4 2 3 Max Kills in Single Turn 3 | . 1 . . 2 2 3 2 . 2 2 1 Gunslinging . | . . . . . . . . . . . . Exploded 2 | . 1 . . 2 2 1 2 . 2 2 . Melee 1 | . . . . . . . . . . . 1 Uniques/NPCs Destroyed . | . . . . . . . . . . . . Combat | -11 -10 -10 -10 -9 -8 -7 -7 -7 -6 -5 -5 -------- Run | Scr Mat Min Exi Min Mat Fac Low Low Fac Fac Gar Damage Taken 3565 | . 420 . . 22 25 411 28 . 930 537 1192 Core 1462 | . 92 . . 7 6 193 15 . 143 119 887 Absorbed by Shields 387 | . . . . . . . . . 324 63 . Core Remaining (%) 82 | 100 . . . 60 98 . . 70 83 . . Volleys Fired 120 | . 28 . . 2 7 32 6 . 42 3 . Largest 3 | . 2 . . 1 1 1 1 . 3 2 . Hottest 250 | . 100 . . 250 250 250 250 . 144 73 . Shots Fired 197 | . 52 . . 2 7 32 6 . 94 4 . Gun 120 | . 42 . . . . . . . 75 3 . Cannon 47 | . . . . 2 7 32 6 . . . . Launcher 26 | . 6 . . . . . . . 19 1 . Special 4 | . 4 . . . . . . . . . . Kinetic 68 | . 24 . . . . . . . 41 3 . Thermal 92 | . 22 . . 2 7 32 6 . 23 . . Explosive 6 | . 6 . . . . . . . . . . Electromagnetic 31 | . . . . . . . . . 30 1 . Robot Hit Streak 12 | . 9 . . 2 6 12 4 . 11 2 . Robot Miss Streak 8 | . 1 . . 4 4 8 8 . 2 1 . Penetration Max . | . . . . . . . . . . . . Secondary Targets 1 | . 1 . . . . . . . . . . Max Gunslinging Chain 1 | . 1 . . . . . . . . . . Shots Hit Robots 141 | . 30 . . 2 6 24 3 . 74 2 . Core Hits 163 | . 16 . . 3 14 55 14 . 37 4 20 Critical Hits . | . . . . . . . . . . . . Critical Kills . | . . . . . . . . . . . . Critical Parts Destroyed . | . . . . . . . . . . . . Melee Attacks 15 | . . . . . . . . . 15 . . Impact . | . . . . . . . . . . . . Slashing 15 | . . . . . . . . . 15 . . Piercing . | . . . . . . . . . . . . Sneak Attacks 2 | . . . . . . . . . 2 . . Combat Hostiles . | . . . . . . . . . . . . Follow-up Attacks . | . . . . . . . . . . . . Damage Inflicted 5660 | . 546 . . 57 524 1965 667 . 1610 151 140 Guns 1272 | . 289 . . . . . . . 938 45 . Cannons 684 | . . . . . 105 435 144 . . . . Explosions 3498 | . 257 . . 57 419 1530 523 . 645 67 . Melee 27 | . . . . . . . . . 27 . . Ramming 179 | . . . . . . . . . . 39 140 Kinetic 674 | . 150 . . . . . . . 479 45 . Thermal 3727 | . 139 . . 57 524 1965 667 . 375 . . Explosive 257 | . 257 . . . . . . . . . . Electromagnetic 796 | . . . . . . . . . 729 67 . Impact . | . . . . . . . . . . . . Slashing 27 | . . . . . . . . . 27 . . Piercing . | . . . . . . . . . . . . Highest Corruption 12 | . . . . . . . . . 1 . 12 Average Corruption 1 | . . . . . . . . . 1 . 7 Corruption Purged . | . . . . . . . . . . . . Effects 8 | . . . . . . . . . 5 . 3 Message Errors 4 | . . . . . . . . . 4 . . Heat Flow Errors 2 | . . . . . . . . . . . 2 Misdirections 1 | . . . . . . . . . . . 1 Weapon Failures 1 | . . . . . . . . . 1 . . Overload Shots . | . . . . . . . . . . . . Overflow Damage 70 | . 26 . . . . 35 9 . . . . Projectiles 10 | . . . . . . 10 . . . . . Explosions 60 | . 26 . . . . 25 9 . . . . Melee . | . . . . . . . . . . . . Knockbacks . | . . . . . . . . . . . . Impact . | . . . . . . . . . . . . Kinetic . | . . . . . . . . . . . . Secondary . | . . . . . . . . . . . . Self-Inflicted Damage 196 | . 16 . . . 11 49 28 . 15 19 58 Shots 15 | . 1 . . . 3 6 3 . 2 . . Rammed 57 | . . . . . . . . . . 2 55 Targets Rammed 57 | . . . . . . . . . . 2 55 Kicked . | . . . . . . . . . . . . Crushed . | . . . . . . . . . . . . Highest Temperature 570 | . 153 . . 420 515 570 194 . 421 2 206 Average Temperature 156 | . 56 . . 228 192 223 90 . 117 1 97 Received Heat Transfer 605 | . 132 . . . 9 60 . . 266 99 39 Effects 24 | . . . . . 4 15 . . 5 . . Shutdowns 7 | . . . . . . 6 . . 1 . . Energy Bleed 5 | . . . . . . 2 . . 3 . . Interference 2 | . . . . . . 2 . . . . . Matter Decay 1 | . . . . . 1 . . . . . . Short Circuit 3 | . . . . . . 2 . . 1 . . Damage (minor) 5 | . . . . . 3 2 . . . . . Damage (core) 1 | . . . . . . 1 . . . . . Siege Activations . | . . . . . . . . . . . . Robots Corrupted . | . . . . . . . . . . . . Combat Hostiles . | . . . . . . . . . . . . Parts Fried . | . . . . . . . . . . . . Impact Corruptions . | . . . . . . . . . . . . Robots Melted 12 | . . . . . 1 9 2 . . . . Combat Hostiles 10 | . . . . . . 8 2 . . . . Parts Melted 67 | . 1 . . 2 11 44 8 . 1 . . Heat Transferred 18007 | . 407 . . 240 3040 10370 3200 . 750 . . Parts Sabotaged . | . . . . . . . . . . . . Parts Stolen 2 | . . . . . . . 2 . . . . Parts Stripped . | . . . . . . . . . . . . Power Chain Reactions 2 | . . . . . . . . . 2 . . Missiles Intercepted . | . . . . . . . . . . . . Alert | -11 -10 -10 -10 -9 -8 -7 -7 -7 -6 -5 -5 ------- Run | Scr Mat Min Exi Min Mat Fac Low Low Fac Fac Gar Peak Influence 773 | . 170 66 . 74 345 525 . . 773 438 368 Average Influence 216 | . 49 66 . 16 145 161 . . 369 390 304 Maximum Alert Level 3 | . . . . . 1 2 . . 3 2 1 Low Security (%) 53 | 100 100 100 . 100 73 56 . . 25 . . Level 1 32 | . . . . . 26 39 . . 36 82 100 Level 2 8 | . . . . . . 3 . . 20 17 . Level 3 6 | . . . . . . . . . 17 . . Level 4 . | . . . . . . . . . . . . Level 5 . | . . . . . . . . . . . . High Security . | . . . . . . . . . . . . Max Security . | . . . . . . . . . . . . Squads Dispatched 19 | . . . . . 4 8 . . 4 3 . Investigation 3 | . . . . . . 1 . . 2 . . Extermination 5 | . . . . . . 3 . . 2 . . Reinforcement 7 | . . . . . 1 4 . . . 2 . Assault . | . . . . . . . . . . . . Garrison 4 | . . . . . 3 . . . . 1 . Intercept . | . . . . . . . . . . . . Construction Impeded 1 | . . . . . . 1 . . . . . Haulers Reinforced 1 | . . . . . . 1 . . . . . Stealth | -11 -10 -10 -10 -9 -8 -7 -7 -7 -6 -5 -5 --------- Run | Scr Mat Min Exi Min Mat Fac Low Low Fac Fac Gar Distress Signals 4 | . . . . . 1 1 . . 1 1 . Communications Jammed 1 | . . . . . . . . . . 1 . Distress Signals 1 | . . . . . . . . . . 1 . Times Spotted 111 | . 10 . . 3 13 31 10 . 24 11 9 Peak Tracking Total 12 | . 8 . . 3 3 6 3 . 4 12 4 Tactical Retreats 7 | . . . . . . . . . 6 1 . Traps | -11 -10 -10 -10 -9 -8 -7 -7 -7 -6 -5 -5 ------- Run | Scr Mat Min Exi Min Mat Fac Low Low Fac Fac Gar Traps Triggered 4 | . . . . . . 2 . . 1 1 . Indirectly . | . . . . . . . . . . . . Trap Hack Attempts . | . . . . . . . . . . . . Triggered . | . . . . . . . . . . . . Disarmed . | . . . . . . . . . . . . Reprogrammed 4 | . . . . . . 4 . . . . . Reused . | . . . . . . . . . . . . Traps Extracted . | . . . . . . . . . . . . Installed . | . . . . . . . . . . . . Triggered 2 | . . . . . . . . 2 . . . Machines | -11 -10 -10 -10 -9 -8 -7 -7 -7 -6 -5 -5 ---------- Run | Scr Mat Min Exi Min Mat Fac Low Low Fac Fac Gar Machines Disabled 29 | . 2 . . . 6 10 3 . 8 . . Max in Single Turn 4 | . 1 . . . 2 4 1 . 2 . . Garrison Access 1 | . . . . . 1 . . . . . . Machines Sabotaged . | . . . . . . . . . . . . Garrisons Compromised 1 | . . . . . . 1 . . . . . Overloaded Fab Kills . | . . . . . . . . . . . . Fab Network Shutdowns 1 | . . . . . . . . . 1 . . Hacking | -11 -10 -10 -10 -9 -8 -7 -7 -7 -6 -5 -5 --------- Run | Scr Mat Min Exi Min Mat Fac Low Low Fac Fac Gar Machines Accessed 28 | . 2 . . 1 6 7 2 . 9 1 . Terminals 15 | . 2 . . 1 4 3 1 . 4 . . Fabricators 5 | . . . . . . 3 . . 2 . . Repair Stations 2 | . . . . . . . . . 2 . . Recycling Units 1 | . . . . . . . . . 1 . . Scanalyzers 2 | . . . . . 1 1 . . . . . Garrison Access 2 | . . . . . 1 . . . . 1 . Total Hacks 67 | . 3 . . 1 13 27 4 . 18 1 . Successful 46 | . 1 . . 1 11 17 4 . 11 1 . Failed 21 | . 2 . . . 2 10 . . 7 . . Catastrophic 4 | . . . . . 1 2 . . 1 . . Database Lockouts . | . . . . . . . . . . . . Manual 2 | . . . 1 . . . 1 . . . . Terminals 28 | . 3 . . 1 6 9 2 . 7 . . Fabricators 18 | . . . . . . 11 . . 7 . . Repair Stations 3 | . . . . . . . . . 3 . . Recycling Units 1 | . . . . . . . . . 1 . . Scanalyzers 13 | . . . . . 6 7 . . . . . Garrison Access 2 | . . . . . 1 . . . . 1 . Terminal Hacks 19 | . 1 . . 1 4 5 4 . 4 . . Record 7 | . . . . . . . 4 . 3 . . Robot Schematic 1 | . . . . . . 1 . . . . . Branch Access Points 2 | . . . . . 1 . . . 1 . . Repair Station Index 1 | . 1 . . . . . . . . . . Unreport Threat 2 | . . . . . 1 1 . . . . . Locate Traps 1 | . . . . . . 1 . . . . . Reprogram Traps 1 | . . . . . . 1 . . . . . Recall Investigation 2 | . . . . . 1 1 . . . . . Registered Components 1 | . . . . . 1 . . . . . . Zone Layout 1 | . . . . 1 . . . . . . . Fabricator Hacks 11 | . . . . . . 6 . . 5 . . Load Schematic 5 | . . . . . . 3 . . 2 . . Build 6 | . . . . . . 3 . . 3 . . Repair Station Hacks 1 | . . . . . . . . . 1 . . Refit 1 | . . . . . . . . . 1 . . Recycling Unit Hacks 1 | . . . . . . . . . 1 . . Retrieve Components 1 | . . . . . . . . . 1 . . Scanalyzer 12 | . . . . . 6 6 . . . . . Insert Component 7 | . . . . . 4 3 . . . . . Analyze 5 | . . . . . 2 3 . . . . . Garrison Access Hacks 2 | . . . . . 1 . . . . 1 . Unlock Access 1 | . . . . . . . . . . 1 . Seal Access 1 | . . . . . 1 . . . . . . Unauthorized Hacks . | . . . . . . . . . . . . Terminals . | . . . . . . . . . . . . Fabricators . | . . . . . . . . . . . . Repair Stations . | . . . . . . . . . . . . Recycling Units . | . . . . . . . . . . . . Scanalyzers . | . . . . . . . . . . . . Garrison Access . | . . . . . . . . . . . . Data Cores Recovered . | . . . . . . . . . . . . Used . | . . . . . . . . . . . . Hacking Detections 20 | . 1 . . . 3 6 1 . 9 . . Full Trace Events 3 | . . . . . . 1 . . 2 . . Feedback Events . | . . . . . . . . . . . . Feedback Blocked . | . . . . . . . . . . . . Robot Schematics Acquired 1 | . . . . . . 1 . . . . . Robots Built 16 | . . . . . . 8 . . 8 . . Matter 1008 | . . . . . . 504 . . 504 . . Time 536 | . . . . . . 268 . . 268 . . Total Robot Build Rating 64 | . . . . . . 32 . . 32 . . Part Schematics Acquired 5 | . . . . . 2 3 . . . . . Parts Built . | . . . . . . . . . . . . Matter . | . . . . . . . . . . . . Time . | . . . . . . . . . . . . Total Part Build Rating . | . . . . . . . . . . . . Parts Repaired . | . . . . . . . . . . . . Time . | . . . . . . . . . . . . Parts Recycled . | . . . . . . . . . . . . Recycled Matter . | . . . . . . . . . . . . Retrieved Matter . | . . . . . . . . . . . . Retrieved Components 1 | . . . . . . . . . 1 . . Parts Scanalyzed 5 | . . . . . 2 3 . . . . . Part Schematics Acquired 5 | . . . . . 2 3 . . . . . Parts Damaged 1 | . . . . . . 1 . . . . . Bothacking | -11 -10 -10 -10 -9 -8 -7 -7 -7 -6 -5 -5 ------------ Run | Scr Mat Min Exi Min Mat Fac Low Low Fac Fac Gar Used RIF Installer . | . . . . . . . . . . . . Robots Hacked . | . . . . . . . . . . . . Non-combat . | . . . . . . . . . . . . Combat . | . . . . . . . . . . . . Robot Hacks Applied . | . . . . . . . . . . . . Relay Couplers Released 1 | . . . . . . 1 . . . . . Machine Destruction 1 | . . . . . . 1 . . . . . Robots Rewired . | . . . . . . . . . . . . Allies Hacked . | . . . . . . . . . . . . Hacks Repelled . | . . . . . . . . . . . . Allies | -11 -10 -10 -10 -9 -8 -7 -7 -7 -6 -5 -5 -------- Run | Scr Mat Min Exi Min Mat Fac Low Low Fac Fac Gar Total Allies 31 | . . 3 . . . 20 . . 8 . . Largest Group 12 | . . 3 3 3 3 12 3 1 4 . . Highest-Rated Group 186 | . . 40 40 40 40 186 36 12 48 . . Highest-Rated Ally 31 | . . 16 16 16 16 31 12 12 12 . . Total Orders 1 | . . . . . . . . 1 . . . GOTO 1 | . . . . . . . . 1 . . . Ally Attacks 161 | . . . . . 19 109 20 . 13 . . Total Damage 1852 | . . . . . 263 1218 196 . 175 . . Kills 21 | . . . . . 4 13 2 . 2 . . Allies Corrupted . | . . . . . . . . . . . . Allies Melted . | . . . . . . . . . . . . Intel | -11 -10 -10 -10 -9 -8 -7 -7 -7 -6 -5 -5 ------- Run | Scr Mat Min Exi Min Mat Fac Low Low Fac Fac Gar Robot Analysis Total . | . . . . . . . . . . . . Derelict Logs Recovered 2 | . . . . 1 . . 1 . . . . Drone Launches . | . . . . . . . . . . . . Drone Recoveries . | . . . . . . . . . . . . Exploration | -11 -10 -10 -10 -9 -8 -7 -7 -7 -6 -5 -5 ------------- Run | Scr Mat Min Exi Min Mat Fac Low Low Fac Fac Gar Turns Passed 5059 | 43 300 137 423 320 519 1237 369 28 1462 80 141 Spaces Moved 5254 | 40 208 136 400 274 437 1007 776 74 1669 126 107 Core 87 | 16 . . . . . . . . . . 71 Treads . | . . . . . . . . . . . . Legs . | . . . . . . . . . . . . Wheels 1926 | 24 208 136 400 274 437 447 . . . . . Hover 3241 | . . . . . . 560 776 74 1669 126 36 Flight . | . . . . . . . . . . . . Fastest Speed 30 | 50 90 90 90 100 90 38 38 38 30 48 50 Average Speed 63 | 81 92 90 95 100 98 60 44 38 46 52 72 Slowest Speed 180 | 100 100 90 100 100 100 180 102 38 160 160 150 Overloaded Moves 17 | . . . . . . . . . 17 . . Propulsion Burnouts . | . . . . . . . . . . . . Robots Hopped . | . . . . . . . . . . . . Cave-ins Triggered . | . . . . . . . . . . . . Exploration Rate (%) 33 | 3 29 30 70 48 39 30 81 10 31 5 28 Regions Visited 11 Branch Regions 5 Pre-discovered Areas 1 | . . . . 1 . . . . . . . Known Exits Taken 1 | . . . . . . . . . . 1 . Unknown Exits Taken 10 | 1 1 1 1 1 1 1 1 1 1 . . Scrap Searched 3 | . . 1 . 1 . . 1 . . . . Spaces Dug 4 | . 4 . . . . . . . . . . Terrain Destroyed 154 | . 31 . . 15 73 35 . . . . . Melee . | . . . . . . . . . . . . Projectile 7 | . 4 . . 2 1 . . . . . . AOE 147 | . 27 . . 13 72 35 . . . . . Actions | -11 -10 -10 -10 -9 -8 -7 -7 -7 -6 -5 -5 --------- Run | Scr Mat Min Exi Min Mat Fac Low Low Fac Fac Gar Total 6757 | 50 253 150 445 318 520 1610 791 73 2244 136 167 Wait 1116 | . . 15 34 42 51 526 3 . 445 . . Move 5244 | 39 207 135 399 273 436 1006 775 73 1668 126 107 Hop . | . . . . . . . . . . . . Pick Up 55 | 5 8 . 4 1 8 11 2 . 15 1 . Fast Attach 18 | 1 . . . . 1 5 1 . 10 . . Attach 42 | 5 3 . 3 . 6 8 2 . 9 3 3 Detach 9 | . . . . . 3 3 1 . . . 2 Swap 12 | . 5 . . . 3 1 . . 3 . . Drop 48 | . 2 . 5 . 5 10 1 . 24 1 . Fire 120 | . 28 . . 2 7 32 6 . 42 3 . Melee 15 | . . . . . . . . . 15 . . Ram 57 | . . . . . . . . . . 2 55 Kick . | . . . . . . . . . . . . Crush . | . . . . . . . . . . . . Escape Stasis 21 | . . . . . . 8 . . 13 . . Rewire . | . . . . . . . . . . . . Trap . | . . . . . . . . . . . . Miscellaneous . | . . . . . . . . . . . . Route ------- -11/Scrapyard -10/Materials -10/Mines -10/Exiles -9/Mines -8/Materials -7/Factory -7/Lower Caves -7/Lower Caves -6/Factory (discovered 3 exits: *Fac / Low x2) -5/Factory (discovered 3 exits: Upp x2 / Gar) -5/Garrison History --------- Turn | Location | Event 7 | -11/Scrapyard | Discovered new exit (range 15) 44 | -11/Scrapyard | Entered Materials 317 | -10/Materials | Build established: Mutant 334 | -10/Materials | Discovered new exit (range 6) 344 | -10/Materials | Entered Mines 410 | -10/Mines | Deemed a non-threat by the Exiles lab entrance 410 | -10/Mines | Discovered new exit (range 5) 434 | -10/Mines | Assisted by bots powering up and referring to "LRC-V3" 481 | -10/Mines | Entered Exiles 481 | -10/Exiles | Accompanied by 3 allies 506 | -10/Exiles | Met 8R-AWN 523 | -10/Exiles | Met EX-HEX 601 | -10/Exiles | Met EX-DEC 622 | -10/Exiles | Met EX-BIN 634 | -10/Exiles | Aligned with FarCom system 635 | -10/Exiles | Given EX-Vault access code 656 | -10/Exiles | Opened EX-Vault 662 | -10/Exiles | Found Prototype Storage 663 | -10/Exiles | Identified Superbattery 665 | -10/Exiles | Found Prototype Energy Cannon 667 | -10/Exiles | Identified Firepult 691 | -10/Exiles | Warned to stay clear of 0b10 Research branches 885 | -10/Exiles | Discovered new exit (range 12) 904 | -10/Exiles | Stole two prototypes: Firepult, Superbattery 904 | -10/Exiles | Entered Mines 904 | -9/Mines | Accompanied by 3 allies 912 | -9/Mines | Learned location of Storage (-7) 948 | -9/Mines | Assembled infested the area 1208 | -9/Mines | Discovered new exit (range 10) 1224 | -9/Mines | Entered Materials 1224 | -8/Materials | Accompanied by 3 allies 1224 | -8/Materials | Evolved 4 slots: Power x1, Propulsion x1, Utility x2 1474 | -8/Materials | Garrison activated, responded to threat 1507 | -8/Materials | Discovered new exit (range 16) 1743 | -8/Materials | Entered Factory 1743 | -7/Factory | Evolved 2 slots: Propulsion x1, Utility x1 1745 | -7/Factory | FarCom data flow suspended 2607 | -7/Factory | Fabricated S-27 Virus (x4) 2748 | -7/Factory | Fabricated S-27 Virus (x4) 2900 | -7/Factory | Build established: Commander-Mutant 2963 | -7/Factory | Discovered new exit (range 13) 2980 | -7/Factory | Entered Lower Caves 2980 | -7/Lower Caves | Accompanied by 3 allies 3033 | -7/Lower Caves | Learned Factory stockpile data 3098 | -7/Lower Caves | Spotted O5-MZJ(f) 3099 | -7/Lower Caves | Encountered a Master Thief 3101 | -7/Lower Caves | Allies destroyed O5-MZJ(f) 3180 | -7/Lower Caves | Spotted 5I-A55(f) 3180 | -7/Lower Caves | Destroyed 5I-A55(f) 3185 | -7/Lower Caves | Spotted SS-RDX(f) 3186 | -7/Lower Caves | Encountered a Master Thief 3192 | -7/Lower Caves | Superbattery stolen by Master Thief 3201 | -7/Lower Caves | Destroyed 8 combat bots 3248 | -7/Lower Caves | Spotted ZG-C6Y(f) 3249 | -7/Lower Caves | Encountered a Master Thief 3249 | -7/Lower Caves | Firepult stolen by Master Thief 3271 | -7/Lower Caves | Build established: Mutant 3296 | -7/Lower Caves | Discovered new exit (range 11) 3349 | -7/Lower Caves | Entered another Lower Caves area 3349 | -7/Lower Caves | Accompanied by 1 ally 3353 | -7/Lower Caves | Discovered new exit (range 15) 3377 | -7/Lower Caves | Entered Factory 3377 | -6/Factory | Evolved 2 slots: Utility x1, Weapon x1 3527 | -6/Factory | Identified exit to Lower Caves 3959 | -6/Factory | Spotted B-75 Beast 4129 | -6/Factory | Fabricated S-27 Virus (x4) 4285 | -6/Factory | Local fabrication network quarantined 4330 | -6/Factory | Fabricated S-27 Virus? 4820 | -6/Factory | Discovered new exit (range 15) 4839 | -6/Factory | Entered another Factory area 4839 | -5/Factory | Evolved 2 slots: Utility x2 4840 | -5/Factory | Identified exit to Upper Caves 4919 | -5/Factory | Identified exit to Garrison 4919 | -5/Factory | Entered Garrison 4948 | -5/Garrison | Lost 9 parts (3n3u3w) 4956 | -5/Garrison | Triggered checkpoint 4996 | -5/Garrison | Core integrity fell below 50% 5018 | -5/Garrison | System corruption reached 10% 5021 | -5/Garrison | Core integrity fell below 20% 5056 | -5/Garrison | Lost 7 parts (1p1n4u1w) 5057 | -5/Garrison | Spotted B-75 Beast 5058 | -5/Garrison | Triggered checkpoint 5060 | -5/Garrison | Triggered checkpoint 5060 | -5/Garrison | Destroyed by Y-64 Sentinel with KE Penetrator Last Messages --------------- 05013_ Hacking Suite destroyed. 05013_ System corrupted by crushing effect (+5). 05014_ Slammed into S-27 Virus. 05017_ Destabilizing: System corrupted (+2). [Achievement: System Compromised] 05019_ System corrupted: Heat flow error (+246). 05019_ Slammed into S-27 Virus. 05022_ S-27 Virus destroyed. 05023_ Slammed into S-27 Virus. 05023_ S-27 Virus destroyed. 05024_ Slammed into S-27 Virus. 05025_ Adv. Targeting Computer destroyed. 05025_ System corrupted by crushing effect (+2). 05026_ Slammed into S-27 Virus. 05026_ S-27 Virus destroyed. 05047_ System corrupted: Heat flow error (+208). 05058_ Beams of light sweep through the air. An alarm sounds. 05059_ Knocked back. 05060_ Beams of light sweep through the air. An alarm sounds. 05060_ Penetrated by Slug. Map ----- +----------------------------------------------------+ | ?????????????????????????????????????????????????? | | ?????????????????????????????????????????????????? | | ?????????????????????????????????????????????????? | | ?????????????????????????????????????????????????? | | ?????????????????????????????????????????????????? | | ?????????????????????????????????????????????????? | | ?????????????????????????????????????????????????? | | ?????????????????????????????????????????????????? | | ?????????????????????????????????????????????????? | | ?????????????????????????????????????????????????? | | ?????????????????????????????????????????????????? | | ?????????????????????????????????????????????????? | | ?????????????????????????????????????????????????? | | ????????????????????????????????????? #??????????? | | ????????????????????????????????????? #??????????? | | ???????????????????????????????????? #??????????? | | ????????????????????????######??""## ##?????????? | | ????????????????????????# ?? ####??????? | | ???????????????????????? ?? ???????? | | ???????????????????????? ?? ? ????????? | | ????????????????????????# #? #? #?????????? | | ??????????????????????### ## ## #?????????? | | ??????????????????????#Y "?????????? | | ??????????????????????#Y BB "?????????? | | ??????????????????????# BB "?????????? | | ??????????????????????# @ "?????????? | | ??????????????????????### ## ## #?????????? | | ????????????????????????# ## ## #########?? | | ####????????????????????# #? | | """#????????????????????# ^ #? | | %%##############????????# #####?????? | | %%%%%%%%%%%%%%%#????????## ##g ## ##?????????? | | ########%%%### #?????????# #? gg#???#??????????? | | ???????#%%%#?# #?????????# #??####??????????????? | | ???????##+##?# #?????????# #????????????????????? | | ????????#%#??# #?????????# #????????????????????? | | ????????# #??# #?????????# #????????????????????? | | ????????# #??# #?????????# #????????????????????? | | ????????# #### ########### #????????????????????? | | ????????# # #????????????????????? | | ????????### #????????????????????? | | ??????????# ################????????????????????? | | ??????????# #???????????????????????????????????? | | ??????????# #???????????????????????????????????? | | ??????????# #???????????????????????????????????? | | ??????????# #???????????????????????????????????? | | ??????????# #???????????????????????????????????? | | ??????????# #???????????????????????????????????? | | ????????### #???????????????????????????????????? | | ????????# #???????????????????????????????????? | +----------------------------------------------------+ Best States ------------- Heat Dissipation 64 Energy Generation 28 Energy Capacity 2315 Matter Stores 300 Matter Capacity 300 Sight Range 22 Robot Scan Range 13 Terrain Scan Density 10 Jamming Range 12 Weapon Shielding 66 Evasion (%) 57 Targeting Accuracy 14 Offensive Hacking 10 Item Schematics ----------------- Deuterium Engine | -8/Materials | Scanalyzed Mining Laser | -8/Materials | Scanalyzed Imp. Sensor Array | -7/Factory | Scanalyzed Trap Extractor | -7/Factory | Scanalyzed Shock Rifle | -7/Factory | Scanalyzed Robot Schematics ------------------ S-27 Virus | -7/Factory | Hacked Fabricated ------------ S-27 Virus | x4 | -7/Factory S-27 Virus | x4 | -7/Factory S-27 Virus | x4 | -6/Factory S-27 Virus | x4 | -6/Factory Alien Tech Used ----------------- None Achievements -------------- Hey, That's Mine! It's Just You System Compromised The More The Merrier War Machine Challenges ------------ None Game ------ Seed FissionPlasmaAutohacker Manual? 0 Play Time 01:39:31 Cumulative 42.1 hours Start 2020.03.04 @ 18:32:14 End 2020.03.04 @ 20:11:47 Sessions 1 Manual Loads 0 Difficulty Rogue Special Mode None Game No. 61 Rogue 61 Adventurer 0 Explorer 0 Win Type - Total 0 Types 0/0/0/0/0/0/0 Lore% 27 Gallery% 35 Achievement% 19 Wizard Run 0 Options --------- ASCII 0 Keyboard 0 Movement Mouse Keybinds 0 Fullscreen 1 Font 18/Smallcaps Map View 76x50 Tactical HUD 1 Map Filters NONE Filters NONE Steam 1 RUN: 337a7fce-f2af-44aa-a1ee-83b68844a54a